[Event "EYCC Girls U16 2021"]
[Site "Tornelo"]
[Date "2021.10.15"]
[Round "3.7"]
[White "Zvereva, Margarita"]
[Black "Jovanovic, Anja"]
[Result "1/2-1/2"]
[ECO "C54"]
[WhiteElo "2013"]
[BlackElo "1781"]
[Annotator "NA"]
[PlyCount "82"]
[EventDate "2021.10.15"]
[EventType "swiss"]
[EventCountry "NET"]
[SourceTitle "playchess.com"]
[Source "ChessBase"]
[SourceQuality "1"]
[TimeControl "5400+30"]

1. e4 {[%emt 0:00:30]} e5 {[%emt 0:00:36]} 2. Nf3 {[%emt 0:00:06]} Nc6 {[%emt 0:00:06]} 3. Bc4 {[%emt 0:00:05]} Bc5 {[%emt 0:00:31]} 4. d3 {[%emt 0:00:05]} Nf6 {[%emt 0:00:19]} 5. O-O {[%emt 0:00:07]} d6 {[%emt 0:00:11]} 6. c3 {[%emt 0:00:07]} O-O {[%emt 0:00:35]} 7. h3 {[%emt 0:00:11]} h6 {[%emt 0:00:45]} 8. Nbd2 {[%emt 0:00:26]} a6 {[%emt 0:00:45]} 9. Bb3 {[%emt 0:00:19]} Ba7 {[%emt 0:00:56]} 10. Re1 {[%emt 0:00:24]} Nh5 {[%emt 0:06:45]} 11. Nf1 {[%emt 0:01:38]} Qf6 {[%emt 0:02:27]} 12. Be3 {[%emt 0:02:25]} Nf4 {[%emt 0:06:35]} 13. d4 {[%emt 0:03:31]} Re8 {[%emt 0:05:33]} 14. Ng3 {[%emt 0:01:54]} g5 {[%emt 0:11:51]} 15. Bxf4 {[%emt 0:21:32]} gxf4 {[%emt 0:05:23]} 16. Ne2 {[%emt 0:00:24]} Qg6 {[%emt 0:06:23]} 17. Kh2 {[%emt 0:01:52]} Kh8 {[%emt 0:01:47]} 18. Bc2 {[%emt 0:08:06]} Rg8 {[%emt 0:10:29]} 19. Rg1 {[%emt 0:00:43]} Qf6 {[%emt 0:04:16]} 20. Qd2 {[%emt 0:03:12]} Ne7 {[%emt 0:03:59]} 21. Nc1 {[%emt 0:07:25]} Rg7 {[%emt 0:10:52]} 22. Nd3 {[%emt 0:08:51]} Ng6 {[%emt 0:01:35]} 23. dxe5 {[%emt 0:01:52]} dxe5 {[%emt 0:00:30]} 24. c4 {[%emt 0:03:34]} Be6 {[%emt 0:02:32]} 25. c5 {[%emt 0:01:18]} Bd7 {[%emt 0:04:26]} 26. Qc3 {[%emt 0:01:46]} Re8 {[%emt 0:00:19]} 27. Rad1 {[%emt 0:02:49]} Bc6 {[%emt 0:02:11]} 28. Nb4 {[%emt 0:00:42]} Reg8 {[%emt 0:04:54]} 29. Nd5 {[%emt 0:09:41]} Bxd5 {[%emt 0:00:28]} 30. exd5 {[%emt 0:01:57]} Nh4 {[%emt 0:00:13]} 31. Nxh4 {[%emt 0:02:19]} Qxh4 {[%emt 0:00:04]} 32. g3 {[%emt 0:08:56]} Qf6 {[%emt 0:02:42]} 33. Be4 {[%emt 0:02:24]} fxg3+ {[%emt 0:02:12]} 34. fxg3 {[%emt 0:00:05]} Qf2+ {[%emt 0:00:14]} 35. Rg2 {[%emt 0:00:04]} Qxc5 {[%emt 0:00:17]} 36. Qxe5 {[%emt 0:00:24]} Qd6 {[%emt 0:01:00]} 37. Qf5 {[%emt 0:03:06]} Qg6 {[%emt 0:00:31]} 38. Qxg6 {[%emt 0:03:35]} fxg6 {[%emt 0:00:02]} 39. d6 {[%emt 0:00:40]} cxd6 {[%emt 0:02:11]} 40. Rxd6 {[%emt 0:00:11]} Bc5 {[%emt 0:00:12]} 41. Rd5 {[%emt 0:00:29]} b6 {[%emt 0:00:07]} 1/2-1/2

[Event "EYCC Girls U16 2021"]
[Site "Tornelo"]
[Date "2021.10.15"]
[Round "3.8"]
[White "Cherepanova, Evita"]
[Black "Lomaia, Diana"]
[Result "1/2-1/2"]
[ECO "B47"]
[WhiteElo "1857"]
[BlackElo "2111"]
[Annotator "NA"]
[PlyCount "99"]
[EventDate "2021.10.15"]
[EventType "swiss"]
[EventCountry "NET"]
[SourceTitle "playchess.com"]
[Source "ChessBase"]
[SourceQuality "1"]
[TimeControl "5400+30"]

1. e4 {[%emt 0:00:30]} c5 {[%emt 0:00:35]} 2. Nf3 {[%emt 0:00:04]} e6 {[%emt 0:00:03]} 3. d4 {[%emt 0:00:03]} cxd4 {[%emt 0:00:05]} 4. Nxd4 {[%emt 0:00:03]} Nc6 {[%emt 0:00:02]} 5. Nc3 {[%emt 0:00:03]} Qc7 {[%emt 0:00:06]} 6. Qd3 {[%emt 0:00:03]} a6 {[%emt 0:00:29]} 7. Nxc6 {[%emt 0:00:06]} bxc6 {[%emt 0:00:06]} 8. Qg3 {[%emt 0:00:03]} d6 {[%emt 0:00:14]} 9. Be3 {[%emt 0:00:41]} Nf6 {[%emt 0:00:24]} 10. Be2 {[%emt 0:00:53]} Rb8 {[%emt 0:02:05]} 11. O-O-O {[%emt 0:05:42]} e5 {[%emt 0:03:47]} 12. f4 {[%emt 0:06:45]} h5 {[%emt 0:01:06]} 13. h3 {[%emt 0:01:02]} a5 {[%emt 0:15:07]} 14. Qf2 {[%emt 0:09:53]} Qb7 {[%emt 0:06:03]} 15. b3 {[%emt 0:00:51]} a4 {[%emt 0:24:07]} 16. fxe5 {[%emt 0:03:03]} dxe5 {[%emt 0:04:23]} 17. Bc5 {[%emt 0:03:07]} axb3 {[%emt 0:01:21]} 18. cxb3 {[%emt 0:00:18]} Bxc5 {[%emt 0:05:15]} 19. Qxc5 {[%emt 0:00:34]} Nd7 {[%emt 0:00:35]} 20. Qd6 {[%emt 0:03:44]} Rh6 {[%emt 0:01:20]} 21. Qd2 {[%emt 0:01:13]} Qb4 {[%emt 0:04:01]} 22. g4 {[%emt 0:05:51]} Qe7 {[%emt 0:09:38]} 23. Rhg1 {[%emt 0:11:17]} Nc5 {[%emt 0:05:29]} 24. Qe3 {[%emt 0:03:32]} Be6 {[%emt 0:03:35]} 25. gxh5 {[%emt 0:02:27]} Qa7 {[%emt 0:03:25]} 26. Kc2 {[%emt 0:08:29]} Qa3 {[%emt 0:03:27]} 27. Rxg7 {[%emt 0:07:27]} Rh8 {[%emt 0:02:51]} 28. Qg3 {[%emt 0:05:51]} Nd7 {[%emt 0:02:52]} 29. h6 {[%emt 0:02:12]} Rxh6 {[%emt 0:00:33]} 30. Rg8+ {[%emt 0:00:05]} Nf8 {[%emt 0:00:44]} 31. Qxe5 {[%emt 0:00:32]} Rc8 {[%emt 0:00:44]} 32. Rd6 {[%emt 0:10:42]} Rg6 {[%emt 0:00:23]} 33. Rxg6 {[%emt 0:00:54]} Nxg6 {[%emt 0:00:02]} 34. Qg3 {[%emt 0:00:28]} Qc5 {[%emt 0:01:19]} 35. Rxe6+ {[%emt 0:00:13]} fxe6 {[%emt 0:00:04]} 36. Qxg6+ {[%emt 0:00:03]} Kd7 {[%emt 0:00:52]} 37. Qf7+ {[%emt 0:01:24]} Qe7 {[%emt 0:00:21]} 38. Qxe7+ {[%emt 0:00:03]} Kxe7 {[%emt 0:00:02]} 39. a4 {[%emt 0:00:45]} Kd6 {[%emt 0:00:39]} 40. Bg4 {[%emt 0:00:32]} Rb8 {[%emt 0:00:37]} 41. a5 {[%emt 0:01:04]} Ra8 {[%emt 0:00:53]} 42. b4 {[%emt 0:03:35]} c5 {[%emt 0:00:02]} 43. bxc5+ {[%emt 0:01:20]} Kxc5 {[%emt 0:00:06]} 44. Bxe6 {[%emt 0:00:11]} Rxa5 {[%emt 0:00:03]} 45. h4 {[%emt 0:01:27]} Kd4 {[%emt 0:00:15]} 46. Kd2 {[%emt 0:02:21]} Rc5 {[%emt 0:00:44]} 47. Na4 {[%emt 0:00:25]} Ra5 {[%emt 0:00:09]} 48. Nc3 {[%emt 0:00:04]} Rc5 {[%emt 0:00:03]} 49. Na4 {[%emt 0:00:02]} Ra5 {[%emt 0:00:02]} 50. Nc3 {[%emt 0:00:04]} 1/2-1/2

[Event "EYCC Girls U16 2021"]
[Site "Tornelo"]
[Date "2021.10.15"]
[Round "3.9"]
[White "Hakobyan, Astghik"]
[Black "Yue, Qizhou"]
[Result "1/2-1/2"]
[ECO "B48"]
[WhiteElo "2017"]
[BlackElo "1842"]
[Annotator "NA"]
[PlyCount "106"]
[EventDate "2021.10.15"]
[EventType "swiss"]
[EventCountry "NET"]
[SourceTitle "playchess.com"]
[Source "ChessBase"]
[SourceQuality "1"]
[TimeControl "5400+30"]

1. e4 {[%emt 0:00:30]} c5 {[%emt 0:01:11]} 2. Nf3 {[%emt 0:00:11]} e6 {[%emt 0:00:08]} 3. d4 {[%emt 0:00:13]} cxd4 {[%emt 0:00:05]} 4. Nxd4 {[%emt 0:00:03]} Nc6 {[%emt 0:00:04]} 5. Nc3 {[%emt 0:00:32]} Qc7 {[%emt 0:00:24]} 6. Be3 {[%emt 0:00:33]} a6 {[%emt 0:00:09]} 7. Qd2 {[%emt 0:00:29]} Nf6 {[%emt 0:00:07]} 8. f3 {[%emt 0:00:09]} b5 {[%emt 0:00:31]} 9. g4 {[%emt 0:01:30]} Bb7 {[%emt 0:02:48]} 10. g5 {[%emt 0:03:45]} Nxd4 {[%emt 0:01:19]} 11. Bxd4 {[%emt 0:02:18]} Nh5 {[%emt 0:00:41]} 12. O-O-O {[%emt 0:00:23]} Be7 {[%emt 0:13:13]} 13. Be5 {[%emt 0:03:24]} Qc6 {[%emt 0:07:53]} 14. Kb1 {[%emt 0:14:06]} Rd8 {[%emt 0:08:08]} 15. Bd6 {[%emt 0:02:54]} Bxd6 {[%emt 0:00:58]} 16. Qxd6 {[%emt 0:00:05]} Qxd6 {[%emt 0:00:28]} 17. Rxd6 {[%emt 0:00:05]} Bc6 {[%emt 0:01:13]} 18. a4 {[%emt 0:03:15]} b4 {[%emt 0:04:00]} 19. Na2 {[%emt 0:04:59]} Ke7 {[%emt 0:03:25]} 20. Rd4 {[%emt 0:00:44]} a5 {[%emt 0:00:32]} 21. Bb5 {[%emt 0:01:36]} Bxb5 {[%emt 0:06:00]} 22. axb5 {[%emt 0:00:16]} d5 {[%emt 0:01:43]} 23. c4 {[%emt 0:03:58]} dxc4 {[%emt 0:04:09]} 24. Rxc4 {[%emt 0:00:06]} Rc8 {[%emt 0:00:28]} 25. Rhc1 {[%emt 0:02:18]} Rxc4 {[%emt 0:00:14]} 26. Rxc4 {[%emt 0:00:05]} Rb8 {[%emt 0:00:34]} 27. Rc7+ {[%emt 0:01:14]} Ke8 {[%emt 0:02:06]} 28. Rc5 {[%emt 0:00:31]} Kd7 {[%emt 0:03:32]} 29. Nc1 {[%emt 0:03:12]} Nf4 {[%emt 0:02:34]} 30. Kc2 {[%emt 0:04:09]} Rc8 {[%emt 0:14:06]} 31. Rxc8 {[%emt 0:00:14]} Kxc8 {[%emt 0:00:06]} 32. Nd3 {[%emt 0:14:57]} Ne2 {[%emt 0:01:31]} 33. Kb3 {[%emt 0:01:44]} Nd4+ {[%emt 0:07:54]} 34. Kc4 {[%emt 0:19:34]} Nxf3 {[%emt 0:00:19]} 35. Kc5 {[%emt 0:00:08]} Kb7 {[%emt 0:00:28]} 36. h4 {[%emt 0:01:17]} Nxh4 {[%emt 0:04:07]} 37. Ne5 {[%emt 0:00:32]} f6 {[%emt 0:00:32]} 38. gxf6 {[%emt 0:00:40]} gxf6 {[%emt 0:00:07]} 39. Nc6 {[%emt 0:01:05]} f5 {[%emt 0:03:11]} 40. Nxa5+ {[%emt 0:00:55]} Kb8 {[%emt 0:00:29]} 41. Nc6+ {[%emt 0:05:39]} Kb7 {[%emt 0:00:33]} 42. Na5+ {[%emt 0:00:52]} Kb8 {[%emt 0:00:07]} 43. Nc6+ {[%emt 0:01:59]} Kb7 {[%emt 0:00:06]} 44. Nd8+ {[%emt 0:00:02]} Kb8 {[%emt 0:00:26]} 45. exf5 {[%emt 0:01:19]} exf5 {[%emt 0:04:08]} 46. Kb6 {[%emt 0:00:43]} f4 {[%emt 0:02:24]} 47. Nc6+ {[%emt 0:00:03]} Kc8 {[%emt 0:00:37]} 48. Nxb4 {[%emt 0:02:18]} f3 {[%emt 0:01:24]} 49. Nd3 {[%emt 0:00:22]} Nf5 {[%emt 0:00:37]} 50. Kc6 {[%emt 0:01:18]} Nd4+ {[%emt 0:01:29]} 51. Kc5 {[%emt 0:00:05]} Ne6+ {[%emt 0:00:57]} 52. Kd6 {[%emt 0:00:41]} Nd4 {[%emt 0:00:24]} 53. Kc5 {[%emt 0:00:43]} Ne6+ {[%emt 0:00:15]} 1/2-1/2

[Event "EYCC Girls U16 2021"]
[Site "Tornelo"]
[Date "2021.10.15"]
[Round "3.10"]
[White "Russeva, Viktoria"]
[Black "Batagan, Ilinca-Petra"]
[Result "1/2-1/2"]
[ECO "B22"]
[WhiteElo "1713"]
[BlackElo "1977"]
[Annotator "NA"]
[PlyCount "69"]
[EventDate "2021.10.15"]
[EventType "swiss"]
[EventCountry "NET"]
[SourceTitle "playchess.com"]
[Source "ChessBase"]
[SourceQuality "1"]
[TimeControl "5400+30"]

1. e4 {[%emt 0:00:30]} c5 {[%emt 0:00:35]} 2. c3 {[%emt 0:00:12]} b6 {[%emt 0:00:06]} 3. d4 {[%emt 0:00:31]} Bb7 {[%emt 0:00:25]} 4. Bd3 {[%emt 0:04:12]} g6 {[%emt 0:00:56]} 5. Nf3 {[%emt 0:03:28]} d6 {[%emt 0:03:23]} 6. O-O {[%emt 0:00:57]} Bg7 {[%emt 0:00:11]} 7. Re1 {[%emt 0:04:37]} Nd7 {[%emt 0:02:37]} 8. Nbd2 {[%emt 0:06:04]} Nh6 {[%emt 0:05:15]} 9. Nf1 {[%emt 0:02:51]} O-O {[%emt 0:01:13]} 10. e5 {[%emt 0:10:35]} dxe5 {[%emt 0:03:13]} 11. dxe5 {[%emt 0:02:09]} Ng4 {[%emt 0:04:51]} 12. e6 {[%emt 0:03:47]} Nde5 {[%emt 0:13:39]} 13. Nxe5 {[%emt 0:03:38]} Nxe5 {[%emt 0:00:14]} 14. exf7+ {[%emt 0:01:10]} Rxf7 {[%emt 0:02:16]} 15. Be2 {[%emt 0:01:49]} Qc7 {[%emt 0:07:59]} 16. Be3 {[%emt 0:09:26]} Rd8 {[%emt 0:03:27]} 17. Qc2 {[%emt 0:00:38]} Kh8 {[%emt 0:04:28]} 18. Ng3 {[%emt 0:03:57]} Qc6 {[%emt 0:01:22]} 19. f3 {[%emt 0:00:58]} Rff8 {[%emt 0:08:31]} 20. Rad1 {[%emt 0:02:13]} a6 {[%emt 0:03:54]} 21. Ne4 {[%emt 0:07:52]} Qe6 {[%emt 0:05:44]} 22. b3 {[%emt 0:02:58]} c4 {[%emt 0:02:20]} 23. Bd4 {[%emt 0:11:08]} b5 {[%emt 0:03:21]} 24. Nc5 {[%emt 0:06:29]} Qc6 {[%emt 0:02:30]} 25. bxc4 {[%emt 0:02:23]} bxc4 {[%emt 0:01:10]} 26. Nxb7 {[%emt 0:00:52]} Qxb7 {[%emt 0:00:07]} 27. Rb1 {[%emt 0:02:16]} Qd5 {[%emt 0:02:32]} 28. Red1 {[%emt 0:01:55]} Nd3 {[%emt 0:00:58]} 29. Bxd3 {[%emt 0:03:07]} Bxd4+ {[%emt 0:00:08]} 30. Kh1 {[%emt 0:00:30]} cxd3 {[%emt 0:01:32]} 31. Qxd3 {[%emt 0:00:47]} Qxa2 {[%emt 0:03:54]} 32. cxd4 {[%emt 0:00:13]} Qe6 {[%emt 0:01:32]} 33. h3 {[%emt 0:00:30]} Rd6 {[%emt 0:00:52]} 34. Re1 {[%emt 0:01:13]} Qf6 {[%emt 0:00:22]} 35. Qe4 {[%emt 0:00:35]} 1/2-1/2

[Event "EYCC Girls U16 2021"]
[Site "Tornelo"]
[Date "2021.10.15"]
[Round "3.11"]
[White "Tokmakova, Ulyana"]
[Black "Mroz, Lena"]
[Result "1-0"]
[ECO "A34"]
[WhiteElo "1977"]
[BlackElo "1775"]
[Annotator "NA"]
[PlyCount "107"]
[EventDate "2021.10.15"]
[EventType "swiss"]
[EventCountry "NET"]
[SourceTitle "playchess.com"]
[Source "ChessBase"]
[SourceQuality "1"]
[TimeControl "5400+30"]

1. c4 {[%emt 0:00:30]} c5 {[%emt 0:00:39]} 2. Nf3 {[%emt 0:00:05]} Nf6 {[%emt 0:00:12]} 3. g3 {[%emt 0:00:11]} d5 {[%emt 0:00:17]} 4. cxd5 {[%emt 0:00:11]} Nxd5 {[%emt 0:00:10]} 5. Nc3 {[%emt 0:02:07]} Nc6 {[%emt 0:01:00]} 6. Bg2 {[%emt 0:02:26]} Nc7 {[%emt 0:00:21]} 7. O-O {[%emt 0:02:41]} e5 {[%emt 0:01:58]} 8. d3 {[%emt 0:01:24]} f6 {[%emt 0:03:53]} 9. Be3 {[%emt 0:04:11]} Bd7 {[%emt 0:06:40]} 10. Nd2 {[%emt 0:05:31]} Be7 {[%emt 0:03:56]} 11. Nce4 {[%emt 0:12:16]} b6 {[%emt 0:06:42]} 12. f4 {[%emt 0:04:54]} exf4 {[%emt 0:17:36]} 13. Bxf4 {[%emt 0:00:46]} O-O {[%emt 0:03:01]} 14. Nc4 {[%emt 0:03:39]} Ne6 {[%emt 0:10:53]} 15. Bd6 {[%emt 0:06:57]} f5 {[%emt 0:13:54]} 16. Nc3 {[%emt 0:05:38]} Be8 {[%emt 0:09:26]} 17. Bd5 {[%emt 0:05:40]} Bxd6 {[%emt 0:04:23]} 18. Bxe6+ {[%emt 0:00:16]} Kh8 {[%emt 0:02:45]} 19. Rxf5 {[%emt 0:05:40]} Rxf5 {[%emt 0:00:40]} 20. Bxf5 {[%emt 0:00:03]} Be7 {[%emt 0:04:31]} 21. Be4 {[%emt 0:02:49]} Rb8 {[%emt 0:02:40]} 22. Nd5 {[%emt 0:07:12]} Bg5 {[%emt 0:01:04]} 23. Qf1 {[%emt 0:00:57]} Bd7 {[%emt 0:01:51]} 24. Nd6 {[%emt 0:04:13]} Ne5 {[%emt 0:02:43]} 25. Nf7+ {[%emt 0:02:26]} Nxf7 {[%emt 0:00:07]} 26. Qxf7 {[%emt 0:00:02]} Qe8 {[%emt 0:01:07]} 27. Rf1 {[%emt 0:00:59]} Qxf7 {[%emt 0:00:53]} 28. Rxf7 {[%emt 0:00:04]} Bg4 {[%emt 0:00:18]} 29. Rxa7 {[%emt 0:03:31]} Bxe2 {[%emt 0:00:13]} 30. Kf2 {[%emt 0:00:36]} Bg4 {[%emt 0:00:26]} 31. Nxb6 {[%emt 0:00:39]} Kg8 {[%emt 0:00:59]} 32. Ra8 {[%emt 0:02:32]} Rxa8 {[%emt 0:00:16]} 33. Bxa8 {[%emt 0:00:02]} Bf6 {[%emt 0:00:15]} 34. Bd5+ {[%emt 0:03:11]} Kf8 {[%emt 0:00:18]} 35. Nc4 {[%emt 0:00:31]} Bd4+ {[%emt 0:00:17]} 36. Kg2 {[%emt 0:01:16]} Ke7 {[%emt 0:00:25]} 37. Be4 {[%emt 0:00:45]} h6 {[%emt 0:00:13]} 38. h3 {[%emt 0:00:37]} Be6 {[%emt 0:00:54]} 39. b3 {[%emt 0:00:32]} Kd7 {[%emt 0:00:52]} 40. Na3 {[%emt 0:01:20]} Ke7 {[%emt 0:00:47]} 41. Nc2 {[%emt 0:01:30]} Bc3 {[%emt 0:00:28]} 42. g4 {[%emt 0:00:42]} Kd6 {[%emt 0:00:29]} 43. Kf3 {[%emt 0:00:39]} Bd7 {[%emt 0:00:37]} 44. Ne3 {[%emt 0:01:21]} Bf6 {[%emt 0:00:39]} 45. a4 {[%emt 0:01:48]} Bc3 {[%emt 0:00:29]} 46. Nc4+ {[%emt 0:00:40]} Kc7 {[%emt 0:00:31]} 47. Bd5 {[%emt 0:00:46]} Be8 {[%emt 0:00:25]} 48. Kf4 {[%emt 0:02:07]} Bg6 {[%emt 0:00:17]} 49. Ne5 {[%emt 0:00:11]} Be8 {[%emt 0:00:48]} 50. Kf5 {[%emt 0:00:52]} Kd6 {[%emt 0:00:26]} 51. Bf7 {[%emt 0:00:32]} Bxa4 {[%emt 0:00:39]} 52. Nc4+ {[%emt 0:00:57]} Ke7 {[%emt 0:00:06]} 53. bxa4 {[%emt 0:00:06]} Kxf7 {[%emt 0:00:08]} 54. a5 {[%emt 0:00:19]} 1-0

[Event "EYCC Girls U16 2021"]
[Site "Tornelo"]
[Date "2021.10.15"]
[Round "3.12"]
[White "Chuchukova, Stefani"]
[Black "Doll, Rebecca"]
[Result "0-1"]
[ECO "D35"]
[WhiteElo "1698"]
[BlackElo "1970"]
[Annotator "NA"]
[PlyCount "98"]
[EventDate "2021.10.15"]
[EventType "swiss"]
[EventCountry "NET"]
[SourceTitle "playchess.com"]
[Source "ChessBase"]
[SourceQuality "1"]
[TimeControl "5400+30"]

1. d4 {[%emt 0:00:30]} Nf6 {[%emt 0:00:38]} 2. c4 {[%emt 0:00:09]} e6 {[%emt 0:00:06]} 3. Nc3 {[%emt 0:00:04]} d5 {[%emt 0:00:08]} 4. Nf3 {[%emt 0:00:09]} Nbd7 {[%emt 0:00:48]} 5. cxd5 {[%emt 0:00:16]} exd5 {[%emt 0:00:09]} 6. Bg5 {[%emt 0:00:15]} c6 {[%emt 0:00:48]} 7. e3 {[%emt 0:00:18]} Be7 {[%emt 0:01:03]} 8. Bd3 {[%emt 0:00:15]} Nh5 {[%emt 0:01:36]} 9. Bxe7 {[%emt 0:02:58]} Qxe7 {[%emt 0:00:15]} 10. O-O {[%emt 0:00:20]} g6 {[%emt 0:03:04]} 11. Rb1 {[%emt 0:04:16]} a5 {[%emt 0:02:30]} 12. a3 {[%emt 0:01:09]} Ndf6 {[%emt 0:01:48]} 13. Ne5 {[%emt 0:02:37]} Ng7 {[%emt 0:01:00]} 14. b4 {[%emt 0:01:03]} Bf5 {[%emt 0:06:04]} 15. Na4 {[%emt 0:03:10]} Bxd3 {[%emt 0:02:00]} 16. Nxd3 {[%emt 0:01:24]} Ne4 {[%emt 0:07:27]} 17. b5 {[%emt 0:02:02]} Nd6 {[%emt 0:10:40]} 18. bxc6 {[%emt 0:01:22]} bxc6 {[%emt 0:00:20]} 19. Ne5 {[%emt 0:00:14]} Ne4 {[%emt 0:09:06]} 20. Nb6 {[%emt 0:05:50]} O-O {[%emt 0:09:05]} 21. Nxa8 {[%emt 0:00:25]} Nc3 {[%emt 0:04:48]} 22. Qb3 {[%emt 0:04:08]} Nxb1 {[%emt 0:00:30]} 23. Rxb1 {[%emt 0:00:18]} Rxa8 {[%emt 0:00:57]} 24. Qb7 {[%emt 0:00:26]} Qxb7 {[%emt 0:04:43]} 25. Rxb7 {[%emt 0:00:06]} c5 {[%emt 0:09:24]} 26. dxc5 {[%emt 0:00:35]} Rc8 {[%emt 0:01:02]} 27. c6 {[%emt 0:00:38]} f6 {[%emt 0:01:54]} 28. c7 {[%emt 0:00:33]} Ne8 {[%emt 0:00:55]} 29. Nc6 {[%emt 0:03:17]} Kf7 {[%emt 0:08:47]} 30. Nxa5 {[%emt 0:02:27]} Nd6 {[%emt 0:01:45]} 31. Ra7 {[%emt 0:03:08]} Nb5 {[%emt 0:00:24]} 32. Rb7 {[%emt 0:00:10]} Nd6 {[%emt 0:00:19]} 33. Rb8 {[%emt 0:00:54]} Rxc7 {[%emt 0:00:13]} 34. f3 {[%emt 0:02:24]} Nc4 {[%emt 0:02:46]} 35. Nxc4 {[%emt 0:02:25]} dxc4 {[%emt 0:00:21]} 36. Rb2 {[%emt 0:00:05]} Ra7 {[%emt 0:00:25]} 37. Ra2 {[%emt 0:00:58]} c3 {[%emt 0:02:56]} 38. Kf2 {[%emt 0:00:54]} Rb7 {[%emt 0:00:09]} 39. Kg3 {[%emt 0:01:18]} Rb2 {[%emt 0:00:06]} 40. Ra1 {[%emt 0:00:09]} c2 {[%emt 0:00:35]} 41. Rc1 {[%emt 0:00:05]} Ke6 {[%emt 0:00:10]} 42. Kf4 {[%emt 0:00:17]} Kd5 {[%emt 0:00:08]} 43. a4 {[%emt 0:02:11]} Kc4 {[%emt 0:00:10]} 44. a5 {[%emt 0:03:05]} Ra2 {[%emt 0:02:07]} 45. a6 {[%emt 0:00:45]} Kd3 {[%emt 0:00:07]} 46. e4 {[%emt 0:00:11]} Rxa6 {[%emt 0:01:03]} 47. h4 {[%emt 0:00:11]} Kd2 {[%emt 0:00:58]} 48. Rxc2+ {[%emt 0:00:21]} Kxc2 {[%emt 0:00:04]} 49. g4 {[%emt 0:00:02]} h6 {[%emt 0:01:02]} 0-1

[Event "EYCC Girls U16 2021"]
[Site "Tornelo"]
[Date "2021.10.15"]
[Round "4.1"]
[White "Tsotsonava, Elene"]
[Black "Follana Albelda, Lucia"]
[Result "1/2-1/2"]
[ECO "B94"]
[WhiteElo "1887"]
[BlackElo "1904"]
[Annotator "ChessBase"]
[PlyCount "81"]
[EventDate "2021.10.15"]
[EventType "swiss"]
[EventCountry "NET"]
[SourceTitle "playchess.com"]
[Source "ChessBase"]
[SourceQuality "1"]
[TimeControl "5400+30"]

1. e4 {[%emt 0:00:30]} c5 {[%emt 0:00:39]} 2. Nf3 {[%emt 0:00:08]} d6 {[%emt 0:00:07]} 3. d4 {[%emt 0:00:06]} cxd4 {[%emt 0:00:08]} 4. Nxd4 {[%emt 0:00:08]} Nf6 {[%emt 0:00:16]} 5. Nc3 {[%emt 0:00:07]} a6 {[%emt 0:00:11]} 6. Bg5 {[%emt 0:00:06]} Nbd7 {[%emt 0:00:10]} 7. Qe2 {[%emt 0:00:11]} h6 {[%emt 0:00:08]} 8. Bh4 {[%emt 0:01:42]} g6 {[%emt 0:00:08]} 9. O-O-O {[%emt 0:01:33]} e5 {[%emt 0:00:24]} 10. Nb3 {[%emt 0:03:26]} Be7 {[%emt 0:01:05]} 11. Kb1 {[%emt 0:09:49]} b5 {[%emt 0:06:53]} 12. a3 {[%emt 0:03:03]} Bb7 {[%emt 0:01:58]} 13. f3 {[%emt 0:00:41]} Rc8 {[%emt 0:03:52]} 14. g4 {[%emt 0:04:16]} Kf8 {[%emt 0:09:15]} 15. Qd2 {[%emt 0:09:48]} Kg7 {[%emt 0:03:17]} 16. g5 {[%emt 0:02:39]} hxg5 {[%emt 0:03:18]} 17. Bxg5 {[%emt 0:00:08]} Qc7 {[%emt 0:02:35]} 18. h4 {[%emt 0:02:31]} Nb6 {[%emt 0:08:30]} 19. Na5 {[%emt 0:08:23]} Ba8 {[%emt 0:06:43]} 20. Bxf6+ {[%emt 0:09:59]} Bxf6 {[%emt 0:02:12]} 21. Qxd6 {[%emt 0:00:18]} Bxh4 {[%emt 0:01:54]} 22. Qxc7 {[%emt 0:05:23]} Rxc7 {[%emt 0:00:13]} 23. Rd6 {[%emt 0:00:31]} Bf2 {[%emt 0:01:40]} 24. Rxh8 {[%emt 0:00:09]} Kxh8 {[%emt 0:00:14]} 25. Nd5 {[%emt 0:04:03]} Bxd5 {[%emt 0:01:56]} 26. exd5 {[%emt 0:00:29]} Kg7 {[%emt 0:03:15]} 27. Rc6 {[%emt 0:03:44]} Nxd5 {[%emt 0:08:56]} 28. Rxa6 {[%emt 0:01:00]} Re7 {[%emt 0:00:31]} 29. Rd6 {[%emt 0:04:05]} Nf4 {[%emt 0:02:20]} 30. Nc6 {[%emt 0:03:36]} Re8 {[%emt 0:00:31]} 31. Bxb5 {[%emt 0:00:31]} f5 {[%emt 0:00:40]} 32. Nb4 {[%emt 0:05:44]} Rb8 {[%emt 0:06:01]} 33. Bc6 {[%emt 0:01:19]} g5 {[%emt 0:03:16]} 34. Nd3 {[%emt 0:02:22]} Nxd3 {[%emt 0:03:11]} 35. Rxd3 {[%emt 0:03:56]} g4 {[%emt 0:00:41]} 36. fxg4 {[%emt 0:01:22]} fxg4 {[%emt 0:00:35]} 37. b4 {[%emt 0:02:10]} Kf6 {[%emt 0:00:57]} 38. c4 {[%emt 0:04:34]} Kf5 {[%emt 0:00:30]} 39. Kc2 {[%emt 0:00:32]} e4 {[%emt 0:00:30]} 40. Rd5+ {[%emt 0:00:16]} Kf4 {[%emt 0:00:26]} 41. Rd7 {[%emt 0:00:55]} 1/2-1/2

[Event "EYCC Girls U16 2021"]
[Site "Tornelo"]
[Date "2021.10.15"]
[Round "4.2"]
[White "Hertlein, Irena"]
[Black "Bashylina, Luisa"]
[Result "0-1"]
[ECO "A16"]
[WhiteElo "1741"]
[BlackElo "2127"]
[Annotator "ChessBase"]
[PlyCount "52"]
[EventDate "2021.10.15"]
[EventType "swiss"]
[EventCountry "NET"]
[SourceTitle "playchess.com"]
[Source "ChessBase"]
[SourceQuality "1"]
[TimeControl "5400+30"]

1. Nf3 {[%emt 0:00:30]} Nf6 {[%emt 0:00:38]} 2. c4 {[%emt 0:00:14]} g6 {[%emt 0:00:07]} 3. Nc3 {[%emt 0:00:06]} d5 {[%emt 0:00:05]} 4. cxd5 {[%emt 0:00:05]} Nxd5 {[%emt 0:00:05]} 5. g3 {[%emt 0:00:06]} Bg7 {[%emt 0:00:04]} 6. Bg2 {[%emt 0:00:05]} O-O {[%emt 0:00:05]} 7. O-O {[%emt 0:00:05]} Nc6 {[%emt 0:00:25]} 8. Nxd5 {[%emt 0:03:18]} Qxd5 {[%emt 0:00:19]} 9. d3 {[%emt 0:00:03]} e5 {[%emt 0:00:40]} 10. Be3 {[%emt 0:01:54]} Qb5 {[%emt 0:04:33]} 11. Qd2 {[%emt 0:11:27]} Be6 {[%emt 0:09:21]} 12. a4 {[%emt 0:12:05]} Qd5 {[%emt 0:09:01]} 13. Nd4 {[%emt 0:05:01]} exd4 {[%emt 0:07:14]} 14. Bxd5 {[%emt 0:00:07]} dxe3 {[%emt 0:00:05]} 15. Qxe3 {[%emt 0:05:26]} Bxd5 {[%emt 0:00:19]} 16. Qc5 {[%emt 0:00:51]} Rad8 {[%emt 0:01:28]} 17. e4 {[%emt 0:04:23]} Be6 {[%emt 0:02:13]} 18. Qb5 {[%emt 0:01:36]} Bh3 {[%emt 0:03:39]} 19. Rfb1 {[%emt 0:03:22]} Nd4 {[%emt 0:06:52]} 20. Qxb7 {[%emt 0:00:52]} f5 {[%emt 0:05:07]} 21. Qxa7 {[%emt 0:02:31]} fxe4 {[%emt 0:00:51]} 22. dxe4 {[%emt 0:00:08]} Nc2 {[%emt 0:04:40]} 23. Ra2 {[%emt 0:03:12]} Bd4 {[%emt 0:01:15]} 24. Qxc7 {[%emt 0:03:27]} Bxf2+ {[%emt 0:00:09]} 25. Kh1 {[%emt 0:00:03]} Ne3 {[%emt 0:00:19]} 26. b4 {[%emt 0:01:27]} Bg2# {[%emt 0:00:06]} 0-1